[Event "*** Titled Tuesday Blitz"]
[Site "Chess.com"]
[Date "2021.02.02"]
[Round "1"]
[White "Sam_ChessMood"]
[Black "SanQui14"]
[Result "1-0"]
[WhiteElo "2840"]
[BlackElo "2433"]
[TimeControl "180+1"]
[EndTime "10:07:32 PST"]
[Termination "Sam_ChessMood won by resignation"]

1. d4 {[%clk 0:02:59.2]} 1... Nf6 {[%clk 0:02:59.2]} 2. Bf4 {[%clk 0:02:57.2]}
2... g6 {[%clk 0:02:58]} 3. Nc3 {[%clk 0:02:56]} 3... d5 {[%clk 0:02:58.3]} 4.
Nf3 {[%clk 0:02:55.6]} 4... Bg7 {[%clk 0:02:58.1]} 5. e3 {[%clk 0:02:56]} 5...
O-O {[%clk 0:02:58.3]} 6. Nb5 {[%clk 0:02:56.2]} 6... Na6 {[%clk 0:02:57.8]} 7.
h3 {[%clk 0:02:54]} 7... c6 {[%clk 0:02:57.1]} 8. Nc3 {[%clk 0:02:51.7]} 8...
Nc7 {[%clk 0:02:54.6]} 9. Be2 {[%clk 0:02:51.4]} 9... Ne6 {[%clk 0:02:43.1]} 10.
Be5 {[%clk 0:02:51.5]} 10... b6 {[%clk 0:02:37.1]} 11. O-O {[%clk 0:02:50.7]}
11... Bb7 {[%clk 0:02:37.2]} 12. a4 {[%clk 0:02:30.7]} 12... c5 {[%clk 0:02:34]}
13. a5 {[%clk 0:02:22.8]} 13... Qd7 {[%clk 0:02:29.4]} 14. Bb5 {[%clk
0:01:54.6]} 14... Bc6 {[%clk 0:02:03]} 15. Qe2 {[%clk 0:01:54.2]} 15... Bxb5
{[%clk 0:01:55.3]} 16. Qxb5 {[%clk 0:01:52.6]} 16... Qxb5 {[%clk 0:01:53.7]} 17.
Nxb5 {[%clk 0:01:52.8]} 17... a6 {[%clk 0:01:51.6]} 18. axb6 {[%clk 0:01:49.9]}
18... axb5 {[%clk 0:01:26.6]} 19. Rxa8 {[%clk 0:01:48.5]} 19... Rxa8 {[%clk
0:01:26.1]} 20. b7 {[%clk 0:01:48.7]} 20... Re8 {[%clk 0:01:22]} 21. b8=Q {[%clk
0:01:32.3]} 21... Rxb8 {[%clk 0:01:21.7]} 22. Bxb8 {[%clk 0:01:33.2]} 22... Nd7
{[%clk 0:01:13.6]} 23. Be5 {[%clk 0:01:32.5]} 23... Bxe5 {[%clk 0:00:55.2]} 24.
Nxe5 {[%clk 0:01:29.7]} 24... Nb6 {[%clk 0:00:50.5]} 25. Nc6 {[%clk 0:01:26.8]}
25... Kf8 {[%clk 0:00:41.1]} 26. Ra1 {[%clk 0:01:25.9]} 26... Na4 {[%clk
0:00:36.3]} 27. b3 {[%clk 0:01:24.5]} 27... Nc3 {[%clk 0:00:36.6]} 28. Ra8+
{[%clk 0:01:21.7]} 28... Kg7 {[%clk 0:00:36.6]} 29. dxc5 {[%clk 0:01:11.3]}
29... Nxc5 {[%clk 0:00:26.5]} 30. Nxe7 {[%clk 0:01:11.2]} 30... d4 {[%clk
0:00:26.9]} 31. exd4 {[%clk 0:01:00]} 31... Ne2+ {[%clk 0:00:26.8]} 32. Kh2
{[%clk 0:00:33.5]} 32... Nxd4 {[%clk 0:00:27.7]} 33. Nd5 {[%clk 0:00:26.8]}
33... Ne4 {[%clk 0:00:15.5]} 34. f3 {[%clk 0:00:25.9]} 34... Nd6 {[%clk
0:00:11.4]} 35. Ne3 {[%clk 0:00:25.1]} 35... b4 {[%clk 0:00:08.6]} 36. Rb8
{[%clk 0:00:21.6]} 36... f5 {[%clk 0:00:04.6]} 37. Rxb4 {[%clk 0:00:19.8]} 37...
N6b5 {[%clk 0:00:04.9]} 38. c3 {[%clk 0:00:17]} 38... f4 {[%clk 0:00:05.1]} 39.
Nd1 {[%clk 0:00:15.4]} 1-0

[Event "*** Titled Tuesday Blitz"]
[Site "Chess.com"]
[Date "2021.02.02"]
[Round "1"]
[White "ChelsieMonica"]
[Black "OK97"]
[Result "0-1"]
[WhiteElo "2405"]
[BlackElo "2782"]
[TimeControl "180+1"]
[EndTime "10:07:34 PST"]
[Termination "OK97 won by resignation"]

1. c4 {[%clk 0:03:00.9]} 1... e5 {[%clk 0:02:57.4]} 2. Nc3 {[%clk 0:03:00.1]}
2... Nf6 {[%clk 0:02:57.9]} 3. g3 {[%clk 0:03:00.5]} 3... d5 {[%clk 0:02:57.7]}
4. cxd5 {[%clk 0:03:01.4]} 4... Nxd5 {[%clk 0:02:58.6]} 5. Bg2 {[%clk
0:03:02.1]} 5... Nxc3 {[%clk 0:02:58.7]} 6. bxc3 {[%clk 0:03:03]} 6... Bc5
{[%clk 0:02:58.9]} 7. Nf3 {[%clk 0:03:03.3]} 7... Nc6 {[%clk 0:02:59.2]} 8. O-O
{[%clk 0:03:03.5]} 8... O-O {[%clk 0:02:59.6]} 9. Bb2 {[%clk 0:03:03.3]} 9... e4
{[%clk 0:02:51]} 10. Ne1 {[%clk 0:02:58.4]} 10... Re8 {[%clk 0:02:43.1]} 11. d4
{[%clk 0:02:54.6]} 11... exd3 {[%clk 0:02:41]} 12. exd3 {[%clk 0:02:43.1]} 12...
Bf5 {[%clk 0:02:33.8]} 13. d4 {[%clk 0:02:38.1]} 13... Bd6 {[%clk 0:02:33.1]}
14. c4 {[%clk 0:02:32]} 14... Qd7 {[%clk 0:02:18.7]} 15. c5 {[%clk 0:02:18]}
15... Bf8 {[%clk 0:02:18.4]} 16. d5 {[%clk 0:02:11.5]} 16... Ne5 {[%clk
0:02:18.2]} 17. Rc1 {[%clk 0:02:11.2]} 17... Bg4 {[%clk 0:02:09.8]} 18. f3
{[%clk 0:01:40.9]} 18... Bh3 {[%clk 0:02:09.5]} 19. Rf2 {[%clk 0:01:31.1]} 19...
Rad8 {[%clk 0:02:02.1]} 20. f4 {[%clk 0:01:04.8]} 20... Bxg2 {[%clk 0:01:55.3]}
21. Nxg2 {[%clk 0:01:05.1]} 21... Ng4 {[%clk 0:01:52.4]} 22. Rd2 {[%clk
0:01:05.1]} 22... Qf5 {[%clk 0:01:38.8]} 23. Qf3 {[%clk 0:01:01.9]} 23... h5
{[%clk 0:01:23.4]} 24. h3 {[%clk 0:00:42.7]} 24... Nh6 {[%clk 0:01:07.8]} 25.
Kh2 {[%clk 0:00:40.4]} 25... Rd7 {[%clk 0:00:54.3]} 26. Rd3 {[%clk 0:00:40.4]}
26... Qe4 {[%clk 0:00:43.7]} 27. Qxe4 {[%clk 0:00:30.9]} 27... Rxe4 {[%clk
0:00:44.6]} 28. c6 {[%clk 0:00:31.2]} 28... bxc6 {[%clk 0:00:43.4]} 29. Rxc6
{[%clk 0:00:31.3]} 29... Re2 {[%clk 0:00:42.2]} 30. Be5 {[%clk 0:00:29.4]} 30...
Bd6 {[%clk 0:00:38.6]} 31. Bxd6 {[%clk 0:00:29.1]} 31... cxd6 {[%clk 0:00:37.8]}
32. Ra3 {[%clk 0:00:27.2]} 32... Nf5 {[%clk 0:00:33.3]} 33. Kg1 {[%clk
0:00:21.6]} 33... Rb7 {[%clk 0:00:31.3]} 34. Rb3 {[%clk 0:00:17.7]} 34... Rbe7
{[%clk 0:00:31.5]} 35. g4 {[%clk 0:00:14.1]} 35... Nd4 {[%clk 0:00:27.9]} 36.
Rc8+ {[%clk 0:00:14.2]} 36... Kh7 {[%clk 0:00:27.9]} 37. Rb1 {[%clk 0:00:11.3]}
37... Nf3+ {[%clk 0:00:26]} 38. Kh1 {[%clk 0:00:11.7]} 38... Rxa2 {[%clk
0:00:24.5]} 39. gxh5 {[%clk 0:00:06.3]} 39... Ree2 {[%clk 0:00:19.3]} 40. Rc3
{[%clk 0:00:05.6]} 40... Nd2 {[%clk 0:00:11.8]} 41. Rg1 {[%clk 0:00:05.2]} 41...
Ne4 {[%clk 0:00:11.9]} 42. Rd3 {[%clk 0:00:05.6]} 42... Nf2+ {[%clk 0:00:11.9]}
0-1

[Event "*** Titled Tuesday Blitz"]
[Site "Chess.com"]
[Date "2021.02.02"]
[Round "1"]
[White "Chessmasterzt"]
[Black "northridgehawk"]
[Result "1-0"]
[WhiteElo "2618"]
[BlackElo "2318"]
[TimeControl "180+1"]
[EndTime "10:07:36 PST"]
[Termination "Chessmasterzt won by resignation"]

1. d4 {[%clk 0:02:59.1]} 1... Nf6 {[%clk 0:02:58.7]} 2. c4 {[%clk 0:02:58]} 2...
g6 {[%clk 0:02:58.9]} 3. Nc3 {[%clk 0:02:57.1]} 3... d5 {[%clk 0:02:59.2]} 4.
Nf3 {[%clk 0:02:47.9]} 4... Bg7 {[%clk 0:02:58.7]} 5. Bg5 {[%clk 0:02:48.1]}
5... dxc4 {[%clk 0:02:56.9]} 6. e4 {[%clk 0:02:45.2]} 6... c5 {[%clk 0:02:56.1]}
7. d5 {[%clk 0:02:40.7]} 7... b5 {[%clk 0:02:54.4]} 8. e5 {[%clk 0:02:36.9]}
8... b4 {[%clk 0:02:52.7]} 9. exf6 {[%clk 0:02:11.6]} 9... exf6 {[%clk
0:02:53.6]} 10. Bd2 {[%clk 0:02:04]} 10... bxc3 {[%clk 0:02:50.6]} 11. Bxc3
{[%clk 0:02:04.9]} 11... O-O {[%clk 0:02:49.2]} 12. Bxc4 {[%clk 0:01:54.9]}
12... Re8+ {[%clk 0:02:48.3]} 13. Kf1 {[%clk 0:01:53]} 13... Nd7 {[%clk
0:02:46.5]} 14. Bb5 {[%clk 0:01:34.9]} 14... Rb8 {[%clk 0:02:43.4]} 15. a4
{[%clk 0:01:33.1]} 15... Bb7 {[%clk 0:02:38.9]} 16. h4 {[%clk 0:01:29.1]} 16...
Qc7 {[%clk 0:02:34.4]} 17. h5 {[%clk 0:01:20]} 17... Qd6 {[%clk 0:02:29.6]} 18.
h6 {[%clk 0:01:09.8]} 18... Bh8 {[%clk 0:02:27.3]} 19. Qd2 {[%clk 0:01:07.4]}
19... a6 {[%clk 0:02:14.6]} 20. Bxd7 {[%clk 0:00:59.1]} 20... Qxd7 {[%clk
0:02:13.7]} 21. Rd1 {[%clk 0:00:52.8]} 21... Qxa4 {[%clk 0:02:02.6]} 22. Rh4
{[%clk 0:00:51]} 22... Qb5+ {[%clk 0:01:59]} 23. Kg1 {[%clk 0:00:49.3]} 23...
Rbd8 {[%clk 0:01:59.4]} 24. d6 {[%clk 0:00:46.5]} 24... Re6 {[%clk 0:01:42.6]}
25. Qf4 {[%clk 0:00:27.9]} 25... Qc6 {[%clk 0:01:38.3]} 26. Qc4 {[%clk
0:00:18.6]} 26... Rexd6 {[%clk 0:01:34.9]} 27. Re1 {[%clk 0:00:15.9]} 27... Qd5
{[%clk 0:01:25.1]} 28. Qa4 {[%clk 0:00:14]} 28... Qc6 {[%clk 0:01:21.5]} 29. Qc4
{[%clk 0:00:13.1]} 29... Qb5 {[%clk 0:01:18.9]} 30. Nd2 {[%clk 0:00:07.7]} 30...
Bd5 {[%clk 0:01:14.8]} 31. Qf4 {[%clk 0:00:06]} 31... Re6 {[%clk 0:01:09.7]} 32.
Rxe6 {[%clk 0:00:05.2]} 32... Bxe6 {[%clk 0:01:10.6]} 33. Qe3 {[%clk 0:00:05.3]}
33... Qd7 {[%clk 0:01:02]} 34. Ne4 {[%clk 0:00:05.2]} 34... Qd1+ {[%clk
0:00:58.6]} 35. Kh2 {[%clk 0:00:05.4]} 35... Qd3 {[%clk 0:00:48.3]} 36. Qf4
{[%clk 0:00:04.8]} 36... f5 {[%clk 0:00:45.1]} 37. Nf6+ {[%clk 0:00:04.1]} 37...
Bxf6 {[%clk 0:00:43.9]} 38. Bxf6 {[%clk 0:00:05]} 38... Re8 {[%clk 0:00:42.8]}
39. Qg5 {[%clk 0:00:04.2]} 39... Qd6+ {[%clk 0:00:39.6]} 40. Kg1 {[%clk
0:00:04.1]} 40... Qd1+ {[%clk 0:00:38.9]} 41. Kh2 {[%clk 0:00:04.2]} 41... Qd6+
{[%clk 0:00:34.8]} 42. Rf4 {[%clk 0:00:04.4]} 42... Bd5 {[%clk 0:00:34.1]} 43.
Bc3 {[%clk 0:00:03.6]} 43... Re4 {[%clk 0:00:32.8]} 44. g3 {[%clk 0:00:03]}
44... Rxf4 {[%clk 0:00:31.3]} 45. gxf4 {[%clk 0:00:03.9]} 45... f6 {[%clk
0:00:29.1]} 46. Bxf6 {[%clk 0:00:03.6]} 46... Kf7 {[%clk 0:00:28.6]} 47. Be5
{[%clk 0:00:03.8]} 47... Bc6 {[%clk 0:00:27.8]} 48. Bxd6 {[%clk 0:00:03.1]} 1-0

[Event "*** Titled Tuesday Blitz"]
[Site "Chess.com"]
[Date "2021.02.02"]
[Round "1"]
[White "MartinMatthiesen"]
[Black "albi1999"]
[Result "0-1"]
[WhiteElo "2329"]
[BlackElo "2629"]
[TimeControl "180+1"]
[EndTime "10:07:37 PST"]
[Termination "albi1999 won on time"]

1. d4 {[%clk 0:03:00.4]} 1... d5 {[%clk 0:02:56.3]} 2. c4 {[%clk 0:03:00.1]}
2... e6 {[%clk 0:02:55.5]} 3. Nf3 {[%clk 0:02:55.1]} 3... c6 {[%clk 0:02:51.4]}
4. e3 {[%clk 0:02:52.2]} 4... f5 {[%clk 0:02:47.8]} 5. Bd3 {[%clk 0:02:49.5]}
5... Bd6 {[%clk 0:02:47.7]} 6. O-O {[%clk 0:02:46.9]} 6... Nf6 {[%clk
0:02:45.9]} 7. b3 {[%clk 0:02:45.2]} 7... Qe7 {[%clk 0:02:46.2]} 8. Bb2 {[%clk
0:02:42.6]} 8... O-O {[%clk 0:02:43]} 9. Qc1 {[%clk 0:02:42.5]} 9... b6 {[%clk
0:02:17.7]} 10. Ba3 {[%clk 0:02:41.8]} 10... c5 {[%clk 0:02:13.6]} 11. Nc3
{[%clk 0:02:41.1]} 11... Nbd7 {[%clk 0:02:06.3]} 12. Nb5 {[%clk 0:02:37.6]}
12... Bb8 {[%clk 0:02:02.7]} 13. cxd5 {[%clk 0:02:26]} 13... exd5 {[%clk
0:02:01.5]} 14. Bxf5 {[%clk 0:02:20.5]} 14... Ne4 {[%clk 0:01:54.3]} 15. Bh3
{[%clk 0:02:11.8]} 15... Ba6 {[%clk 0:01:49.8]} 16. Nc3 {[%clk 0:01:27.9]} 16...
Bxf1 {[%clk 0:01:45.4]} 17. Kxf1 {[%clk 0:01:28.8]} 17... Ndf6 {[%clk
0:01:25.9]} 18. dxc5 {[%clk 0:01:25.3]} 18... bxc5 {[%clk 0:01:05.2]} 19. Qc2
{[%clk 0:00:45.9]} 19... Be5 {[%clk 0:00:55.1]} 20. Nxd5 {[%clk 0:00:37.7]}
20... Nxd5 {[%clk 0:00:46.6]} 21. Qxe4 {[%clk 0:00:37.6]} 21... Bxa1 {[%clk
0:00:44]} 22. Qxd5+ {[%clk 0:00:36.7]} 22... Kh8 {[%clk 0:00:44.5]} 23. Bxc5
{[%clk 0:00:36.4]} 23... Qd8 {[%clk 0:00:32.3]} 24. Bd7 {[%clk 0:00:23.8]} 24...
Rf6 {[%clk 0:00:24.8]} 25. Be7 {[%clk 0:00:18.4]} 25... Qxe7 {[%clk 0:00:21.1]}
26. Qxa8+ {[%clk 0:00:18.3]} 26... Rf8 {[%clk 0:00:21.5]} 27. Qc6 {[%clk
0:00:17.5]} 27... h6 {[%clk 0:00:16.9]} 28. g3 {[%clk 0:00:14.1]} 28... Qf6
{[%clk 0:00:15.9]} 29. Kg2 {[%clk 0:00:13.1]} 29... Qe7 {[%clk 0:00:12.9]} 30.
Nh4 {[%clk 0:00:11.4]} 30... Rf6 {[%clk 0:00:08.9]} 31. Qa8+ {[%clk 0:00:08.1]}
31... Kh7 {[%clk 0:00:08.7]} 32. Bf5+ {[%clk 0:00:07.6]} 32... g6 {[%clk
0:00:08.5]} 33. Bd3 {[%clk 0:00:04.5]} 33... Kg7 {[%clk 0:00:08.1]} 34. Qd5
{[%clk 0:00:03.2]} 34... Be5 {[%clk 0:00:05.5]} 35. f4 {[%clk 0:00:02.3]} 35...
Bc7 {[%clk 0:00:04.9]} 36. e4 {[%clk 0:00:02.6]} 36... Rd6 {[%clk 0:00:05.1]}
37. Qc4 {[%clk 0:00:02.7]} 37... Bb6 {[%clk 0:00:03.9]} 38. e5 {[%clk
0:00:02.1]} 38... Rd4 {[%clk 0:00:04.2]} 0-1

[Event "*** Titled Tuesday Blitz"]
[Site "Chess.com"]
[Date "2021.02.02"]
[Round "1"]
[White "sergoy"]
[Black "MattyDPerrine"]
[Result "1-0"]
[WhiteElo "2875"]
[BlackElo "2451"]
[TimeControl "180+1"]
[EndTime "10:07:38 PST"]
[Termination "sergoy won on time"]

1. d4 {[%clk 0:02:56.2]} 1... Nf6 {[%clk 0:02:59.9]} 2. c4 {[%clk 0:02:56.1]}
2... c5 {[%clk 0:03:00.4]} 3. d5 {[%clk 0:02:55.5]} 3... b5 {[%clk 0:03:00.9]}
4. cxb5 {[%clk 0:02:56.4]} 4... a6 {[%clk 0:03:01.1]} 5. bxa6 {[%clk 0:02:56.8]}
5... g6 {[%clk 0:03:01.4]} 6. Nc3 {[%clk 0:02:57.1]} 6... Bxa6 {[%clk 0:03:02]}
7. e4 {[%clk 0:02:57.3]} 7... Qa5 {[%clk 0:03:02.7]} 8. Bd2 {[%clk 0:02:55.9]}
8... Bxf1 {[%clk 0:03:01.6]} 9. Kxf1 {[%clk 0:02:55]} 9... d6 {[%clk 0:03:02.2]}
10. Nf3 {[%clk 0:02:52.6]} 10... Qa6+ {[%clk 0:03:02.3]} 11. Qe2 {[%clk
0:02:44.6]} 11... Qxe2+ {[%clk 0:03:02.3]} 12. Kxe2 {[%clk 0:02:45.5]} 12... Bg7
{[%clk 0:03:02.6]} 13. a3 {[%clk 0:02:35.9]} 13... O-O {[%clk 0:02:55.8]} 14. e5
{[%clk 0:01:48.7]} 14... dxe5 {[%clk 0:02:24.9]} 15. Nxe5 {[%clk 0:01:49.6]}
15... Rd8 {[%clk 0:02:17.6]} 16. Nc4 {[%clk 0:01:30.5]} 16... Nxd5 {[%clk
0:02:09.2]} 17. Nxd5 {[%clk 0:01:31.4]} 17... Rxd5 {[%clk 0:02:09.8]} 18. Rhd1
{[%clk 0:01:31]} 18... Nc6 {[%clk 0:02:00.6]} 19. Be3 {[%clk 0:01:22.2]} 19...
Nd4+ {[%clk 0:01:41.4]} 20. Kf1 {[%clk 0:01:21.9]} 20... Rb8 {[%clk 0:01:30.2]}
21. a4 {[%clk 0:01:16]} 21... Rb4 {[%clk 0:01:16.5]} 22. Bxd4 {[%clk 0:00:40.1]}
22... cxd4 {[%clk 0:01:08.4]} 23. Nd2 {[%clk 0:00:21.2]} 23... d3 {[%clk
0:00:32.4]} 24. a5 {[%clk 0:00:20.4]} 24... Bxb2 {[%clk 0:00:23.8]} 25. Ra2
{[%clk 0:00:20]} 25... Bd4 {[%clk 0:00:23.7]} 26. a6 {[%clk 0:00:19.4]} 26...
Ba7 {[%clk 0:00:15.1]} 27. Rc1 {[%clk 0:00:19.7]} 27... Rd7 {[%clk 0:00:10.5]}
28. g3 {[%clk 0:00:20]} 28... f6 {[%clk 0:00:09.5]} 29. Rc3 {[%clk 0:00:13.9]}
29... Kf7 {[%clk 0:00:08.4]} 30. Ke1 {[%clk 0:00:11.4]} 30... Rb6 {[%clk
0:00:06.3]} 31. Raa3 {[%clk 0:00:09.5]} 31... Re6+ {[%clk 0:00:06.8]} 32. Kf1
{[%clk 0:00:09.5]} 32... Red6 {[%clk 0:00:07.2]} 33. h4 {[%clk 0:00:09.5]} 33...
h5 {[%clk 0:00:06.1]} 34. f3 {[%clk 0:00:08.4]} 34... Rd5 {[%clk 0:00:04.2]} 35.
g4 {[%clk 0:00:08.5]} 35... hxg4 {[%clk 0:00:04.1]} 36. fxg4 {[%clk 0:00:09.4]}
36... Rd4 {[%clk 0:00:04.4]} 37. h5 {[%clk 0:00:06.9]} 37... gxh5 {[%clk
0:00:04.4]} 38. gxh5 {[%clk 0:00:07.8]} 38... Kg7 {[%clk 0:00:05.2]} 39. Ra5
{[%clk 0:00:07.1]} 39... Rf4+ {[%clk 0:00:05.2]} 40. Ke1 {[%clk 0:00:06.5]}
40... Rd6 {[%clk 0:00:05]} 41. Rc7 {[%clk 0:00:06]} 41... Re6+ {[%clk
0:00:03.1]} 42. Kd1 {[%clk 0:00:06.3]} 42... Bf2 {[%clk 0:00:02.3]} 43. Kc1
{[%clk 0:00:06.7]} 1-0

[Event "*** Titled Tuesday Blitz"]
[Site "Chess.com"]
[Date "2021.02.02"]
[Round "1"]
[White "ApacheSVD"]
[Black "superchess02"]
[Result "1-0"]
[WhiteElo "2436"]
[BlackElo "2797"]
[TimeControl "180+1"]
[EndTime "10:07:39 PST"]
[Termination "ApacheSVD won by resignation"]

1. e4 {[%clk 0:02:59.2]} 1... d5 {[%clk 0:02:59]} 2. exd5 {[%clk 0:03:00.1]}
2... Nf6 {[%clk 0:02:58.3]} 3. d4 {[%clk 0:02:59.6]} 3... c6 {[%clk 0:02:57.2]}
4. dxc6 {[%clk 0:02:58.1]} 4... Nxc6 {[%clk 0:02:57.1]} 5. Nf3 {[%clk
0:02:56.8]} 5... Bg4 {[%clk 0:02:56.1]} 6. c3 {[%clk 0:02:55.8]} 6... e5 {[%clk
0:02:56.1]} 7. Be2 {[%clk 0:02:41.3]} 7... exd4 {[%clk 0:02:43.3]} 8. Nxd4
{[%clk 0:02:38]} 8... Nxd4 {[%clk 0:02:41.9]} 9. Qxd4 {[%clk 0:02:28.2]} 9...
Qxd4 {[%clk 0:02:37.8]} 10. cxd4 {[%clk 0:02:27.4]} 10... Bb4+ {[%clk 0:02:15]}
11. Bd2 {[%clk 0:02:26.7]} 11... Bxd2+ {[%clk 0:02:14.3]} 12. Nxd2 {[%clk
0:02:27.6]} 12... O-O-O {[%clk 0:02:11.7]} 13. Bxg4+ {[%clk 0:02:15.8]} 13...
Nxg4 {[%clk 0:02:12.6]} 14. O-O {[%clk 0:02:03.1]} 14... Rxd4 {[%clk 0:02:09.9]}
15. Nf3 {[%clk 0:02:01.6]} 15... Rd5 {[%clk 0:02:05.9]} 16. Rac1+ {[%clk
0:02:00.2]} 16... Kb8 {[%clk 0:02:05.6]} 17. h3 {[%clk 0:01:59.9]} 17... Nf6
{[%clk 0:02:05.1]} 18. Rfd1 {[%clk 0:01:58.2]} 18... Rhd8 {[%clk 0:02:04.1]} 19.
Rxd5 {[%clk 0:01:56.9]} 19... Rxd5 {[%clk 0:02:05]} 20. Kf1 {[%clk 0:01:55]}
20... b5 {[%clk 0:01:45.6]} 21. Ke2 {[%clk 0:01:52.9]} 21... Kb7 {[%clk
0:01:40.8]} 22. Ke3 {[%clk 0:01:45.4]} 22... Rd6 {[%clk 0:01:38]} 23. g3 {[%clk
0:01:33.9]} 23... Nd5+ {[%clk 0:01:36.3]} 24. Ke2 {[%clk 0:01:30.3]} 24... b4
{[%clk 0:01:22.3]} 25. Rc4 {[%clk 0:01:20.3]} 25... Ra6 {[%clk 0:01:14.8]} 26.
Rd4 {[%clk 0:01:12.4]} 26... Kc6 {[%clk 0:01:12]} 27. Ne5+ {[%clk 0:01:06.9]}
27... Kc5 {[%clk 0:01:12.2]} 28. Rc4+ {[%clk 0:00:56.3]} 28... Kb5 {[%clk
0:00:53]} 29. Rd4 {[%clk 0:00:51.3]} 29... Ne7 {[%clk 0:00:49.3]} 30. Nd3 {[%clk
0:00:44.5]} 30... Nc6 {[%clk 0:00:43.8]} 31. Rd5+ {[%clk 0:00:41.9]} 31... Kc4
{[%clk 0:00:26.7]} 32. Rd7 {[%clk 0:00:16.1]} 32... Nd4+ {[%clk 0:00:18]} 33.
Kd2 {[%clk 0:00:10]} 33... f6 {[%clk 0:00:18.3]} 34. b3+ {[%clk 0:00:07]} 34...
Kb5 {[%clk 0:00:17.8]} 35. Rxd4 {[%clk 0:00:06.8]} 35... Rxa2+ {[%clk
0:00:18.5]} 36. Ke3 {[%clk 0:00:07]} 36... a5 {[%clk 0:00:19.2]} 37. Rd5+ {[%clk
0:00:06.9]} 37... Kc6 {[%clk 0:00:19.3]} 38. Rd8 {[%clk 0:00:06.9]} 38... Ra3
{[%clk 0:00:19]} 39. Nc1 {[%clk 0:00:07.2]} 39... a4 {[%clk 0:00:19.1]} 40. Kd2
{[%clk 0:00:06.5]} 40... axb3 {[%clk 0:00:18.6]} 41. Rc8+ {[%clk 0:00:06.7]}
41... Kb7 {[%clk 0:00:17.6]} 42. Rc4 {[%clk 0:00:05.3]} 42... Ka6 {[%clk
0:00:16.1]} 43. Rxb4 {[%clk 0:00:05.4]} 43... Ka5 {[%clk 0:00:16.4]} 44. Rxb3
{[%clk 0:00:05.6]} 44... Ra1 {[%clk 0:00:17.3]} 45. Nd3 {[%clk 0:00:05.5]} 45...
Rb1 {[%clk 0:00:16.2]} 46. Rxb1 {[%clk 0:00:05.5]} 1-0

[Event "*** Titled Tuesday Blitz"]
[Site "Chess.com"]
[Date "2021.02.02"]
[Round "1"]
[White "SGchess01"]
[Black "konradrutkowski"]
[Result "1/2-1/2"]
[WhiteElo "2793"]
[BlackElo "2425"]
[TimeControl "180+1"]
[EndTime "10:07:39 PST"]
[Termination "Game drawn by agreement"]

1. e4 {[%clk 0:02:59.5]} 1... d6 {[%clk 0:02:57.3]} 2. d4 {[%clk 0:02:58.7]}
2... Nf6 {[%clk 0:02:55.1]} 3. Nc3 {[%clk 0:02:57.1]} 3... g6 {[%clk 0:02:53.1]}
4. Nf3 {[%clk 0:02:57.7]} 4... Bg7 {[%clk 0:02:52.5]} 5. h3 {[%clk 0:02:58.3]}
5... O-O {[%clk 0:02:52]} 6. Be3 {[%clk 0:02:58.8]} 6... a6 {[%clk 0:02:49]} 7.
a4 {[%clk 0:02:58.2]} 7... Nc6 {[%clk 0:02:45.8]} 8. a5 {[%clk 0:02:53.2]} 8...
Re8 {[%clk 0:01:58.7]} 9. Be2 {[%clk 0:02:48.4]} 9... e5 {[%clk 0:01:55.2]} 10.
d5 {[%clk 0:02:46.2]} 10... Nd4 {[%clk 0:01:47.6]} 11. O-O {[%clk 0:02:41.8]}
11... Nxe2+ {[%clk 0:01:26.3]} 12. Qxe2 {[%clk 0:02:42.7]} 12... Nh5 {[%clk
0:01:18.1]} 13. Nd2 {[%clk 0:02:30]} 13... Nf4 {[%clk 0:01:16]} 14. Qf3 {[%clk
0:02:29.8]} 14... g5 {[%clk 0:01:09.9]} 15. Rfe1 {[%clk 0:02:22]} 15... f5
{[%clk 0:01:08.3]} 16. exf5 {[%clk 0:02:20.8]} 16... Bxf5 {[%clk 0:01:07.4]} 17.
Nce4 {[%clk 0:02:21.3]} 17... Rf8 {[%clk 0:01:06.5]} 18. Qd1 {[%clk 0:02:18.6]}
18... h6 {[%clk 0:01:03]} 19. c4 {[%clk 0:02:18.1]} 19... Qd7 {[%clk 0:01:02.3]}
20. Ra3 {[%clk 0:02:15.5]} 20... Rf7 {[%clk 0:00:57.1]} 21. f3 {[%clk
0:02:10.1]} 21... Bxh3 {[%clk 0:00:52.2]} 22. gxh3 {[%clk 0:02:07]} 22... Qxh3
{[%clk 0:00:53.1]} 23. Bxf4 {[%clk 0:02:05.7]} 23... exf4 {[%clk 0:00:51.7]} 24.
Nf1 {[%clk 0:02:00.1]} 24... Bxb2 {[%clk 0:00:43.7]} 25. Rb3 {[%clk 0:01:59.6]}
25... Be5 {[%clk 0:00:42.6]} 26. Nf2 {[%clk 0:01:59.6]} 26... Qh4 {[%clk
0:00:38.7]} 27. Rxb7 {[%clk 0:01:57.1]} 27... h5 {[%clk 0:00:36.6]} 28. Nh2
{[%clk 0:01:40.9]} 28... Qg3+ {[%clk 0:00:32.6]} 29. Kh1 {[%clk 0:01:40.6]}
29... Qxf2 {[%clk 0:00:32]} 30. Rg1 {[%clk 0:01:41.2]} 30... Rg7 {[%clk
0:00:31.3]} 31. Qd3 {[%clk 0:01:39]} 31... g4 {[%clk 0:00:30.8]} 32. fxg4 {[%clk
0:01:37.7]} 32... f3 {[%clk 0:00:29.1]} 33. Nxf3 {[%clk 0:01:34.7]} 33... Rf8
{[%clk 0:00:29.1]} 34. Nxe5 {[%clk 0:01:33.9]} 34... dxe5 {[%clk 0:00:24.6]} 35.
Qg3 {[%clk 0:01:26.1]} 35... Qe2 {[%clk 0:00:20.6]} 36. g5 {[%clk 0:01:19.3]}
36... Rf3 {[%clk 0:00:19]} 37. Rb8+ {[%clk 0:01:15.4]} 37... Kf7 {[%clk
0:00:18.2]} 38. g6+ {[%clk 0:01:15.1]} 38... Ke7 {[%clk 0:00:15.9]} 39. Re1
{[%clk 0:00:51.5]} 39... Rxg3 {[%clk 0:00:12.4]} 40. Rxe2 {[%clk 0:00:51.8]}
40... R7xg6 {[%clk 0:00:13.3]} 41. c5 {[%clk 0:00:49.6]} 41... Rh3+ {[%clk
0:00:09.3]} 42. Rh2 {[%clk 0:00:48.9]} 42... Rc3 {[%clk 0:00:10.2]} 43. Rxh5
{[%clk 0:00:47.4]} 43... Rxc5 {[%clk 0:00:10.4]} 44. Rxe5+ {[%clk 0:00:47.5]}
44... Kd6 {[%clk 0:00:10.6]} 45. Rbe8 {[%clk 0:00:47.2]} 45... Rxd5 {[%clk
0:00:09.5]} 46. Rxd5+ {[%clk 0:00:45.6]} 46... Kxd5 {[%clk 0:00:10.4]} 47. Ra8
{[%clk 0:00:45.3]} 47... Kc5 {[%clk 0:00:10]} 48. Rb8 {[%clk 0:00:45.5]} 48...
Rg3 {[%clk 0:00:07.9]} 49. Rb7 {[%clk 0:00:44.8]} 49... c6 {[%clk 0:00:07.3]}
50. Rb6 {[%clk 0:00:44.7]} 50... Ra3 {[%clk 0:00:08.2]} 51. Rxa6 {[%clk
0:00:45.1]} 51... Kb5 {[%clk 0:00:08.5]} 52. Rb6+ {[%clk 0:00:45.7]} 52... Kxa5
{[%clk 0:00:08.7]} 53. Rxc6 {[%clk 0:00:46.3]} 53... Kb5 {[%clk 0:00:08.7]} 54.
Rg6 {[%clk 0:00:44.6]} 54... Kc5 {[%clk 0:00:08.4]} 55. Rg5+ {[%clk 0:00:43.4]}
1/2-1/2